Cogmind - Beta 16 @@@ ROGUE MODE // 2026.01.01 @ 02:21:58 Player: LYMPH NODE JONES Result: Destroyed by 53-4XC(R) with Subdweller Beam Cannon Performance ------------- Evolutions (0) 0 Regions Visited (3) 600 Robots Destroyed (28) 140 Value Destroyed (707) 707 Prototype IDs (0) 0 Alien Tech Used (0) 0 Bonus (14) 14 TOTAL SCORE: 1461 Bonus ------- Follower Combat Kills 14 Cogmind --------- Core Integrity 0/250 Matter 500/500 Energy 75/100 System Corruption 0% Temperature Cool (22) Movement Core (300) Ox5 Location -10/Subcaves Parts ------- > --- POWER (1) -------- (None) > --- PROPULSION (2) --- (None) > --- UTILITY (2) ------ Small Storage Unit High-capacity Matter Pod > --- WEAPON (2) ------- Subdweller Beam Cannon > --- INVENTORY (8) ---- Light Ion Engine Heat Sink Improved Heat Sink High-capacity Battery (250) Subdweller Optics Sensor Array Makeshift Hacking Suite Grenade Launcher Peak State ------------ > --- POWER ------------ Ion Engine > --- PROPULSION ------- Spiked Treads Makeshift Leg > --- UTILITY ---------- Small Storage Unit High-capacity Matter Pod > --- WEAPON ----------- Barrage Gun Barrage Gun > --- INVENTORY -------- Light Ion Engine Heat Sink Improved Heat Sink High-capacity Battery Sensor Array Grenade Launcher Scrap Shield Fragment Scrap Shield Fragment [Rating: 16] Favorites ----------- Power Ion Engine Engine Ion Engine Propulsion Aluminum Leg Treads Spiked Treads Leg Aluminum Leg Utility Small Storage Unit Storage Small Storage Unit Weapon Improved Light Cannon Energy Gun EM Pulse Gun Energy Cannon Subdweller Beam Cannon Ballistic Gun Heavy Assault Rifle Ballistic Cannon Improved Light Cannon Launcher Grenade Launcher Slashing Weapon Makeshift Axe Build | -11 -10 -10 -10 ------- Run | Yrd Mat Min Sub Slots Evolved . | . . . . Power . | . . . . Propulsion . | . . . . Utility . | . . . . Weapon . | . . . . Parts Attached 27 | 6 9 4 8 Power 4 | 1 1 1 1 Engine 4 | 1 1 1 1 Core . | . . . . Reactor . | . . . . Propulsion 7 | 2 3 . 2 Treads 1 | . . . 1 Leg 6 | 2 3 . 1 Wheel . | . . . . Hover . | . . . . Flight . | . . . . Utility 2 | 1 1 . . Device . | . . . . Storage 2 | 1 1 . . Processor . | . . . . Hackware . | . . . . Protection . | . . . . Artifact . | . . . . Weapon 14 | 2 4 3 5 Energy Gun 3 | 1 . 2 . Energy Cannon 1 | . . . 1 Ballistic Gun 5 | 1 1 1 2 Ballistic Cannon 3 | . 2 . 1 Launcher 1 | . 1 . . Special Weapon . | . . . . Impact Weapon . | . . . . Slashing Weapon 1 | . . . 1 Piercing Weapon . | . . . . Special Melee Weapon . | . . . . Unidentified Prototypes . | . . . . Parts Lost 12 | . 1 . 11 Power 2 | . . . 2 Propulsion 4 | . 1 . 3 Utility . | . . . . Weapon 6 | . . . 6 Highest Loss Streak 3 | . 1 . 3 To Critical Strikes . | . . . . Average Backups 6 | 1 6 8 6 Power 1 | . 1 2 1 Propulsion . | . . . . Utility 3 | . 2 4 4 Weapon 1 | . 2 2 . Tool/Special . | . . . . Unused Backups 9 | . 2 . 7 Power 1 | . . . 1 Propulsion . | . . . . Utility 7 | . 1 . 6 Weapon 1 | . 1 . . Tool/Special . | . . . . Average Slot Usage (%) 96 | . 98 99 93 Engine 13 | . 14 14 13 Treads 3 | . . . 8 Leg 22 | . 27 28 15 Storage 27 | . 26 28 28 Energy Gun 4 | . 3 7 4 Energy Cannon 1 | . . . 3 Ballistic Gun 6 | . 3 7 7 Ballistic Cannon 12 | . 19 13 3 Launcher 1 | . . . 3 Peak Build Rating 16 | 6 10 11 16 Average Rating 10 | 3 8 10 12 On Entrance 6 | . 6 9 11 Avg Prop Armor Cover (%) 6 | . . . 6 Naked Turns . | . . . . Heaviest Build 25 | 14 22 22 25 Greatest Support 30 | 20 20 20 30 Greatest Overweight (x) 2 | . 2 1 1 Average Overweight (x) . | . . . . Largest Inventory Capacity 8 | 8 8 8 8 Average Capacity 7 | 6 8 8 8 Most Carried 8 | 2 8 8 8 Average Carried 7 | 1 7 8 7 Final Capacity 8 | 8 8 8 8 Final Carried 8 | 2 8 8 8 Class Distribution -------------------- 80% | Mutant 15% | Scavenger-Mutant 3% | Derelict-Mutant Dominant Class ---------------- Mutant | -10/Materials Scavenger-Mutant | -10/Mines Mutant | -10/Subcaves Resources | -11 -10 -10 -10 ----------- Run | Yrd Mat Min Sub Matter Collected 1327 | 235 477 274 341 Remotely . | . . . . Salvage Created 737 | . 384 123 230 Parts 45 | . 22 8 15 Haulers Intercepted . | . . . . Recyclers Shooed . | . . . . Parts Field Recycled . | . . . . Retrieved Matter . | . . . . Parts Self-Destructed 16 | . . . 16 Prevented . | . . . . Parts Restored . | . . . . Kills | -11 -10 -10 -10 ------- Run | Yrd Mat Min Sub Combat Hostiles Destroyed 23 | . 8 7 8 Guns 8 | . 2 2 4 Cannons 12 | . 6 5 1 AOE 2 | . . . 2 Classes Destroyed 6 | . 4 . 2 Recycler 2 | . 2 . . Turret 2 | . . . 2 Watcher 1 | . 1 . . Swarmer 10 | . 2 5 3 Grunt 10 | . 6 2 2 Subdweller 3 | . . . 3 Best Kill Streak 5 | . 5 3 3 Combat Bots Only 4 | . 4 3 3 Max Kills in Single Turn 2 | . 1 1 2 Gunslinging 1 | . . . 1 Exploded 1 | . . . 1 Melee . | . . . . Uniques/NPCs Destroyed . | . . . . Combat | -11 -10 -10 -10 -------- Run | Yrd Mat Min Sub Hostile Shots Fired 244 | . 58 26 160 Missed 87 | . 18 7 62 Hits 157 | . 40 19 98 Projectile 157 | . 40 19 98 AOE 1 | . . . 1 Critical Strikes 1 | . . . 1 Damage Taken 1929 | . 412 169 1348 Core 268 | . 31 40 197 Absorbed by Shields . | . . . . Core Remaining (%) 100 | 100 . . . Volleys Fired 91 | . 39 11 41 Largest 2 | . 2 2 2 Hottest 108 | . 66 79 108 Shots Fired 166 | . 78 22 66 Gun 66 | . 24 6 36 Cannon 83 | . 48 16 19 Launcher 17 | . 6 . 11 Special . | . . . . Kinetic 116 | . 60 19 37 Thermal 21 | . . 3 18 Explosive 17 | . 6 . 11 Electromagnetic 12 | . 12 . . Robot Hit Streak 8 | . 7 5 8 Robot Miss Streak 5 | . 5 4 3 Penetration Max . | . . . . Secondary Targets 2 | . 1 . 1 Max Gunslinging Chain 1 | . 1 . 1 Shots Hit Robots 85 | . 31 12 42 Core Hits 44 | . 14 9 21 Critical Kills 1 | . . . 1 Critical Parts Destroyed . | . . . . Critical Strikes 5 | . 2 1 2 Burn 1 | . . 1 . Meltdown 1 | . . . 1 Blast 1 | . . . 1 Corrupt 2 | . 2 . . Melee Attacks 1 | . . . 1 Impact . | . . . . Slashing 1 | . . . 1 Piercing . | . . . . Sneak Attacks . | . . . . Combat Hostiles . | . . . . Follow-up Attacks . | . . . . Damage Inflicted 1951 | . 600 277 1074 Guns 585 | . 201 74 310 Cannons 886 | . 335 203 348 Explosions 451 | . 64 . 387 Melee 29 | . . . 29 Ramming . | . . . . Kinetic 1064 | . 441 234 389 Thermal 349 | . 37 43 269 Explosive 414 | . 27 . 387 Electromagnetic 95 | . 95 . . Impact . | . . . . Slashing 29 | . . . 29 Piercing . | . . . . Highest Corruption . | . . . . Average Corruption . | . . . . Corruption Purged . | . . . . Corruption Blocked . | . . . . Overload Shots . | . . . . Overflow Damage 22 | . 20 . 2 Projectiles 20 | . 20 . . Explosions 2 | . . . 2 Melee . | . . . . Knockbacks 9 | . 6 . 3 Impact . | . . . . Kinetic 9 | . 6 . 3 Secondary . | . . . . Self-Inflicted Damage 68 | . 29 . 39 Shots 5 | . 3 . 2 Rammed . | . . . . Targets Rammed . | . . . . Kicked . | . . . . Crushed . | . . . . Highest Temperature 84 | . 84 63 28 Average Temperature 24 | . 29 17 10 Received Heat Transfer 711 | . 117 15 579 Siege Activations . | . . . . Martial Activations . | . . . . Shielding Activations . | . . . . Robots Disrupted . | . . . . Combat Hostiles . | . . . . Robots Corrupted . | . . . . Combat Hostiles . | . . . . Parts Fried . | . . . . Impact Corruptions . | . . . . Robots Melted 1 | . . . 1 Combat Hostiles 1 | . . . 1 Parts Melted 4 | . . 4 . Heat Transferred 555 | . . 185 370 Parts Sabotaged . | . . . . Parts Stolen . | . . . . Parts Stripped . | . . . . Power Chain Reactions 1 | . 1 . . Alert | -11 -10 -10 -10 ------- Run | Yrd Mat Min Sub Maximum Alert Level . | . . . . Low Security (%) 100 | 100 100 100 . Level 1 . | . . . . Level 2 . | . . . . Level 3 . | . . . . Level 4 . | . . . . Level 5 . | . . . . High Security . | . . . . Max Security . | . . . . Peak Influence 145 | . 83 145 . Initial 25 | . . 25 . Average 26 | . 18 45 . Influence Increases 802 | . 287 206 309 Destroy 0b10 Robot/C 480 | . 160 160 160 Destroy 0b10 Robot/NC 15 | . 15 . . Destroy Leader 82 | . 42 30 10 Allied During Kill 18 | . . 14 4 Successful Hack 9 | . 9 . . Disable Machine 30 | . 30 . . Destroy Structure 33 | . 31 2 . Lose Combat Pursuer 135 | . . . 135 Influence Decreases 802 | . 222 239 341 Entered New Map 57 | . . 40 17 Time Decay 659 | . 212 199 248 Lost Part 46 | . 10 . 36 Lost Ally 40 | . . . 40 Squads Dispatched 3 | . 3 . . Investigation 1 | . 1 . . Extermination . | . . . . Reinforcement 2 | . 2 . . Assault . | . . . . Garrison . | . . . . Intercept . | . . . . Searches Triggered . | . . . . Construction Impeded . | . . . . Haulers Reinforced . | . . . . Active Scanning Responses . | . . . . Cargo Convoy Interrupts . | . . . . Stealth | -11 -10 -10 -10 --------- Run | Yrd Mat Min Sub Distress Signals . | . . . . Communications Jammed . | . . . . Distress Signals . | . . . . Times Spotted 51 | . 18 10 23 Peak Tracking Total 5 | . 5 3 4 Tactical Retreats 5 | . . . 5 Traps | -11 -10 -10 -10 ------- Run | Yrd Mat Min Sub Traps Triggered . | . . . . Indirectly . | . . . . Trap Hack Attempts . | . . . . Triggered . | . . . . Disarmed . | . . . . Reprogrammed . | . . . . Reused . | . . . . Traps Extracted . | . . . . Installed . | . . . . Triggered . | . . . . Machines | -11 -10 -10 -10 ---------- Run | Yrd Mat Min Sub Machines Disabled 5 | . 2 . 3 Max in Single Turn 3 | . 1 . 3 Machines Repaired . | . . . . Machines Dismantled . | . . . . Machines Sabotaged . | . . . . Overloaded Fab Kills . | . . . . Hacking | -11 -10 -10 -10 --------- Run | Yrd Mat Min Sub Machines Accessed 2 | . 2 . . Terminals 2 | . 2 . . Fabricators . | . . . . Repair Stations . | . . . . Recycling Units . | . . . . Scanalyzers . | . . . . Garrison Access . | . . . . Total Hacks 6 | . 6 . . Successful 3 | . 3 . . Failed 3 | . 3 . . Catastrophic . | . . . . Database Lockouts . | . . . . Manual . | . . . . Terminals 6 | . 6 . . Fabricators . | . . . . Repair Stations . | . . . . Recycling Units . | . . . . Scanalyzers . | . . . . Garrison Access . | . . . . Terminal Hacks 3 | . 3 . . Record 1 | . 1 . . Dispatch Records 1 | . 1 . . Transport Status 1 | . 1 . . Fabricator Hacks . | . . . . Repair Station Hacks . | . . . . Recycling Unit Hacks . | . . . . Scanalyzer . | . . . . Garrison Access Hacks . | . . . . Unauthorized Hacks . | . . . . Terminals . | . . . . Fabricators . | . . . . Repair Stations . | . . . . Recycling Units . | . . . . Scanalyzers . | . . . . Garrison Access . | . . . . Data Cores Recovered . | . . . . Used . | . . . . Hacking Detections 2 | . 2 . . Full Trace Events 1 | . 1 . . Feedback Events . | . . . . Feedback Blocked . | . . . . Robot Schematics Acquired . | . . . . Robots Built . | . . . . Authchips . | . . . . Time . | . . . . Total Robot Build Rating . | . . . . Part Schematics Acquired . | . . . . Parts Built . | . . . . Authchips . | . . . . Time . | . . . . Total Part Build Rating . | . . . . Part Studies Acquired . | . . . . Parts Repaired . | . . . . Time . | . . . . Parts Recycled . | . . . . Recycled Matter . | . . . . Retrieved Matter . | . . . . Retrieved Components . | . . . . Parts Scanalyzed . | . . . . Part Schematics Acquired . | . . . . Parts Damaged . | . . . . Bothacking | -11 -10 -10 -10 ------------ Run | Yrd Mat Min Sub Used RIF Installer . | . . . . Robots Hacked . | . . . . Non-combat . | . . . . Combat . | . . . . Robot Hacks Applied . | . . . . Relay Couplers Released . | . . . . Fabnet Peak Effective % . | . . . . Robots Rewired . | . . . . Allies Hacked . | . . . . Hacks Repelled . | . . . . Allies | -11 -10 -10 -10 -------- Run | Yrd Mat Min Sub Total Allies 2 | . . 2 . Largest Group 2 | . . 2 2 Highest-Rated Group 42 | . . 42 42 Highest-Rated Ally 31 | . . 31 31 Total Orders . | . . . . Ally Attacks 12 | . . 8 4 Total Damage 167 | . . 126 41 Kills 2 | . . 1 1 Allies Corrupted . | . . . . Allies Melted . | . . . . Intel | -11 -10 -10 -10 ------- Run | Yrd Mat Min Sub Active Infowar (turns) . | . . . . Robot Analysis Total . | . . . . Derelict Logs Recovered 3 | . . 2 1 Drone Launches . | . . . . Drone Recoveries . | . . . . Exploration | -11 -10 -10 -10 ------------- Run | Yrd Mat Min Sub Turns Passed 3255 | 74 1295 641 1245 Spaces Moved 1810 | 60 711 398 641 Core 12 | 12 . . . Treads 373 | . . . 373 Legs 1425 | 48 711 398 268 Wheels . | . . . . Hover . | . . . . Flight . | . . . . Fastest Speed 50 | 50 120 120 130 Average Speed 158 | 106 156 148 172 Slowest Speed 260 | 120 260 190 260 Overloaded Moves . | . . . . Propulsion Burnouts . | . . . . Robots Hopped . | . . . . Potential Cave-ins 2 | . 2 . . Cave-ins Triggered . | . . . . Exploration Rate (%) 51 | 3 74 80 47 Regions Visited 3 Branch Regions 2 Pre-discovered Areas 1 | . . 1 . Known Exits Taken . | . . . . Unknown Exits Taken 3 | 1 1 1 . Scrap Searched 2 | . . . 2 Spaces Dug 5 | . 5 . . Terrain Destroyed 85 | . 46 2 37 Melee . | . . . . Projectile 5 | . 1 2 2 AOE 80 | . 45 . 35 Terrain Rammed . | . . . . Walls Destroyed . | . . . . Machines Disabled . | . . . . Actions | -11 -10 -10 -10 --------- Run | Yrd Mat Min Sub Total 2032 | 68 818 427 719 Wait 61 | . 39 8 14 Move 1807 | 59 710 397 641 Hop . | . . . . Pick Up 15 | 3 7 . 5 Fast Attach 26 | 5 11 4 6 Attach 6 | 1 . . 5 Detach 3 | . 1 . 2 Swap 2 | . 1 1 . Drop 18 | . 10 4 4 Fire 91 | . 39 11 41 Melee 1 | . . . 1 Ram . | . . . . Kick . | . . . . Crush . | . . . . Escape Stasis . | . . . . Rewire 2 | . . 2 . Trap . | . . . . Miscellaneous . | . . . . Route ------- -11/Scrapyard -10/Materials (discovered 4 exits: [*Mat x2] / [*Min x2]) -10/Mines (discovered 3 exits: [*Mat x2] / [*Sub]) -10/Subcaves (discovered 2 exits: [*Mat] / [*Rec]) History --------- Turn | Location | Event 6 | -11/Scrapyard | Discovered new exit (range 14) 75 | -11/Scrapyard | Entered Materials 299 | -10/Materials | Discovered new exit (range 7) 302 | -10/Materials | Build established: Mutant 455 | -10/Materials | Discovered new exit (range 3) 1007 | -10/Materials | Discovered new exit (range 11) 1325 | -10/Materials | Discovered new exit (range 7) 1370 | -10/Materials | Entered Mines 1401 | -10/Mines | Discovered new exit (range 6) 1412 | -10/Mines | Learned location of Mines (-9) 1414 | -10/Mines | Discovered new exit (range 8) 1634 | -10/Mines | Learned location of 1 exit from Materials 1651 | -10/Mines | Joined a pair of Derelicts in attacking an 0b10 outpost 1971 | -10/Mines | Discovered new exit (range 10) 1974 | -10/Mines | Build established: Scavenger-Mutant 2011 | -10/Mines | Entered Subcaves 2011 | -10/Subcaves | Accompanied by 2 allies 2012 | -10/Subcaves | Approached by a straggling Scientist 2016 | -10/Subcaves | Led the pair of lost Derelicts to an unsafe place 2038 | -10/Subcaves | Discovered new exit (range 15) 2130 | -10/Subcaves | A swath of the cavern ceiling suddenly collapsed 2199 | -10/Subcaves | Core integrity fell below 50% 2410 | -10/Subcaves | Disturbed a concealed Subdweller 2445 | -10/Subcaves | Lost 3 parts (1n2w) 2491 | -10/Subcaves | Build established: Mutant 2804 | -10/Subcaves | A swath of the cavern ceiling suddenly collapsed 2884 | -10/Subcaves | Core integrity fell below 20% 3181 | -10/Subcaves | Discovered new exit (range 11) 3256 | -10/Subcaves | Destroyed by 53-4XC(R) with Subdweller Beam Cannon Last Messages --------------- 02881_ Barrage Gun destroyed. 02887_ NA-T3O(R) destroyed. 02902_ Acquired 50 matter. 02905_ Acquired Sub. Beam Cannon. 02910_ Acquired Sub. Optics. 02931_ PO-DVC(R): "OHNO!" 02940_ Mak. Leg destroyed. 02947_ Barrage Gun destroyed. 02953_ PO-DVC(R) destroyed. 02961_ Acquired 37 matter. 03044_ Acquired Mak. Axe. 03045_ Acquired 32 matter. 03181_ EXIT=FOUND 03235_ Subatomizers dissect the Sub. Laser. 03243_ Spk. Treads destroyed. 03250_ Subatomizers dissect the Sub. Laser. 03252_ Ion Engine destroyed. 03253_ PH-SE0(R) suffers critical hit (Meltdown). 03256_ Mak. Axe destroyed. Map ----- +----------------------------------------------------+ | ?????????????????????????????????????????????????? | | ?????????????????????????????????????????????????? | | ?????????????????????????????????????????????????? | | ?????????????????????????????????????????????????? | | ?????????????????????????????????????????????????? | | ?????????????????????????????????????????????????? | | ?????????????????????????????????????????????????? | | ?????????????????????????????????????????????????? | | ?????????????????????????????????????????????????? | | ?????????????????????????????????????????????????? | | ?????????????????????????????????????????????????? | | ?????????????????????????????????????????????????? | | ?????????????????????????????????????????????????? | | ?????????????????????????????????????????????????? | | ?????????????????????????????????????????????????? | | ???????????????? #?#?????????????????????????????? | | ????????????????? # #????????######??????????????? | | ??????????????????%# #??###?# ? ###???????????? | | ??????????????????# # ### ## ?? #???????????? | | ??????????????????? # ??? #???????????? | | ???????????????????# #! ??? #???????????? | | ???????????????????# #%=# ????# ????????????? | | ???????????????????# # *[ ?????# ##???????????? | | ???????????????????# R!%&#????## #???????????? | | ???????????????????# *;###### #????????????? | | ????????????????????# @ ## #????????????? | | ????????????????????# #????????????? | | ????????????????????# #????????????? | | ???????????????????# ;# ##???????????? | | ???????????????? !% ####### #???????????? | | ?????????????# ! #??????# ;#??????????? | | ?????????????##### % ##???????## ##??????????? | | ?????????????????# ??????????# #??####?????? | | ?????????????????###??????#???## #?? #?????? | | ????????????????????????### ### ##?? " ?????? | | ????????????????????????# ##??? #?????? | | ???????????????????????# ##???& "#?????? | | ??????????????????????# # # ##?? #?????? | | ?????????????????????#"< ?##### #?? #??????? | | ?????????????????????#""???????# ### #??????? | | ???????????????????????????????## ## #???????? | | ????????????????????????????????# #???????? | | ????????????????????????????????# # #???????? | | ???????????????????????????????" ## ##???????? | | ??????????????????????????????##"#### #????????? | | ??????????????????????????????# "???# #?##?????? | | ??????????????????????????????# ""??# ## ##????# | | ??????????????????????????????# ### ###??# | | ?????????????????????????????? " "#"# #??? | | ??????????????????????????????# " ^" " ##??? | +----------------------------------------------------+ Best States ------------- Heat Dissipation 25 Energy Generation 12 Energy Capacity 265 Matter Stores 500 Matter Capacity 500 Sight Range 16 Terrain Scan Density 10 Evasion (%) 55 Recoil Reduction 1 Item Schematics ----------------- None Robot Schematics ------------------ None Fabricated ------------ Nothing Repaired ---------- Nothing Studied --------- None Alien Tech Used ----------------- None Achievements -------------- None Challenges ------------ None Game ------ Seed CoordinationSystemDirector Manual? 0 Play Time 00:32:50 Cumulative 4.7 hours Start 2025.12.31 @ 22:52:58 End 2026.01.01 @ 02:21:58 Sessions 5 Manual Loads 0 Difficulty Rogue Special Mode None Game No. 12 Rogue 12 Adventurer 0 Explorer 0 Win Type - Total 0 Types 0/0/0/0/0/0/0/0/0/0 Lore% 1 Gallery% 7 Achievement% 9 Wizard Run 0 Options --------- Layout 1 ASCII 0 Keyboard 0 Movement Arrows Keybinds 0 Fullscreen 1 Font 16/SmallcapsGlow Map View 50x40 Zoom Use 0% Tactical HUD 1 Map Filters NONE Filters NONE Steam SD RUN: 88da882b-42ec-4663-9ce5-4d5774c99d35